bitfinex/quotes_ETHUSD_20250404
["timestamp","ask_amount","ask_price","bid_price","bid_amount"]
[1743791004187,5.52052,1811.5,1811.1,6.35017]
[1743791004409,5.52059,1811.4,1811.1,7.537361]
[1743791004601,5.52052,1811.5,1811.1,7.537361]
[1743791004602,5.52052,1811.5,1811.1,13.058761]
[1743791004825,5.52052,1811.5,1811.2,5.52107]
[1743791005440,5.5197,1811.7,1811.3,5.5208]
[1743791005809,5.52001,1811.6,1811.3,5.5208]
[1743791006002,5.5197,1811.7,1811.3,6.624924]
[1743791006208,5.52012,1811.6,1811.3,1.104194]
[1743791006410,5.52038,1811.5,1811.2,5.52116]
[1743791006628,5.52038,1811.5,1811.1,7.537371]
[1743791006801,5.52038,1811.5,1811.1,7.537281]
[1743791007012,5.51999,1811.6,1811.3,5.52088]
[1743791007217,5.51972,1811.7,1811.4,5.52056]
[1743791007740,5.51972,1811.7,1811.4,6.624704]
[1743791007907,5.51972,1811.7,1811.4,1.104144]
[1743791008108,5.52002,1811.6,1811.4,1.104144]
[1743791008416,3.8098,1811.8,1811.1,2.015891]
[1743791008622,5.52193,1811.0,1810.8,0.7743]
[1743791008911,5.52193,1811.0,1810.7,5.52265]
[1743791009123,12.12626,1811.2,1810.8,11.0447]
[1743791009356,5.52126,1811.2,1810.9,1.10447]
[1743791009635,0.13295523,1811.1,1811.0,6.34121]
[1743791009854,0.13295523,1811.1,1811.0,18.24385]
[1743791009855,0.12187606,1811.1,1811.0,18.24385]
[1743791010004,5.61918,1811.9,1811.5,6.29075]
[1743791010208,5.61918,1811.9,1811.5,0.7706]
[1743791010209,5.51967,1811.7,1811.5,0.7706]
[1743791010404,5.51967,1811.7,1811.2,5.52093]
[1743791010617,0.10754233,1811.6,1811.5,5.52012]
[1743791010816,5.51949,1811.8,1811.5,5.52012]
[1743791011048,0.10862713,1811.7,1811.4,5.52045]
[1743791011256,0.10862713,1811.7,1811.5,0.552045]
[1743791011439,0.10862713,1811.7,1811.5,6.12735197]
[1743791011644,11.13833,1811.9,1811.5,6.12735197]
[1743791011839,0.10918949,1811.8,1811.6,5.51991]
[1743791012042,0.10918949,1811.8,1811.5,6.072155]
[1743791012043,5.51939,1811.8,1811.5,6.072155]
[1743791012248,5.51939,1811.8,1811.5,0.552045]
[1743791012554,0.10918949,1811.7,1811.5,6.072275]
[1743791012757,0.10918949,1811.7,1811.6,0.6072275]
[1743791012963,0.10918949,1811.7,1811.5,0.552045]
[1743791013113,0.10918949,1811.7,1811.5,6.072325]
[1743791013842,0.10918949,1811.7,1811.5,6.1273711]
[1743791014044,11.13835,1811.9,1811.5,6.072175]
[1743791014216,0.10935015,1811.8,1811.5,6.072175]
[1743791014417,11.13835,1811.9,1811.6,0.6072175]
[1743791014617,0.10935015,1811.8,1811.5,6.072165]
[1743791014841,0.1,1811.9,1811.7,0.8078]
[1743791015019,0.10935015,1811.8,1811.7,0.8078]
[1743791015224,5.61919,1811.9,1811.7,0.8078]
[1743791015449,0.10922966,1811.8,1811.7,0.8078]
[1743791015621,0.1,1811.9,1811.8,5.51937]
[1743791016022,0.1,1811.9,1811.8,5.57455912]
[1743791016226,0.1,1811.9,1811.8,5.51937]
[1743791016420,0.1,1811.9,1811.7,6.960117]
[1743791016632,0.1,1811.9,1811.7,0.632767]
[1743791016838,0.1,1811.9,1811.7,6.152397]
[1743791017128,0.1,1811.9,1811.8,6.1346097]
[1743791017329,0.1,1811.9,1811.8,0.6152397]
[1743791017630,0.21003287,1811.9,1811.8,0.6152397]
[1743791018419,0.21003287,1811.9,1811.7,5.51953]
[1743791018620,0.21003287,1811.9,1811.8,5.51937]
[1743791018964,0.21003287,1811.9,1811.8,6.32397]
[1743791021828,0.21003287,1811.9,1811.8,6.37915579]
[1743791022074,0.21003287,1811.9,1811.8,6.32397]
[1743791022378,0.21003287,1811.9,1811.8,7.50832]
[1743791023235,0.21003287,1811.9,1811.8,1.18435]
[1743791023441,0.21003287,1811.9,1811.7,5.51951]
[1743791024061,0.21003287,1811.9,1811.6,6.31571]
[1743791024262,0.21003287,1811.9,1811.7,5.51954]
[1743791024566,0.21003287,1811.9,1811.8,5.51937]
[1743791025440,0.21003287,1811.9,1811.8,6.32017]
[1743791025644,0.21003287,1811.9,1811.8,8.69407478]
[1743791026254,0.21003287,1811.9,1811.8,8.638895]
[1743791026460,0.21003287,1811.9,1811.8,8.69407497]
[1743791026833,0.21003287,1811.9,1811.8,8.638895]
[1743791028652,0.21003287,1811.9,1811.8,8.69408012]
[1743791028853,0.21003287,1811.9,1811.8,8.638895]
[1743791029255,0.21003287,1811.9,1811.8,8.69408007]
[1743791029644,0.21003287,1811.9,1811.8,8.638895]
[1743791030038,0.21003287,1811.9,1811.6,5.51985]
[1743791030256,0.21003287,1811.9,1811.7,5.51941]
[1743791030457,0.21003287,1811.9,1811.8,5.51937]
[1743791030663,0.21003287,1811.9,1811.8,6.30227]
[1743791031240,0.21003287,1811.9,1811.8,6.35745041]
[1743791031458,0.1,1811.9,1811.8,8.12783645]
[1743791031837,0.1,1811.9,1811.8,9.09731702]
[1743791032056,0.1,1811.9,1811.8,9.04213661]
[1743791032366,0.1,1811.9,1811.8,9.0973094]
[1743791032555,0.1,1811.9,1811.8,9.04213661]
[1743791032732,0.1,1811.9,1811.8,18.10213661]
[1743791033064,6.30335,1812.8,1812.4,5.51733]
[1743791033368,0.1,1812.9,1812.7,5.51663]
[1743791033551,0.1,1812.9,1812.8,5.51632]
[1743791033865,0.1,1812.9,1812.7,5.51663]
[1743791034266,0.1,1812.9,1812.7,5.51649]
[1743791034445,0.1,1812.9,1812.7,11.03294]
[1743791034631,0.1,1812.9,1812.7,5.51645]
[1743791034829,0.1,1812.9,1812.8,5.51632]
[1743791035033,0.1,1812.9,1812.8,6.39107613]
[1743791035257,0.1,1812.9,1812.8,6.33592]
[1743791038537,0.1,1812.9,1812.8,6.39107172]
[1743791038768,0.1,1812.9,1812.8,6.94107172]
[1743791038969,0.1,1812.9,1812.8,8.29715749]
[1743791039340,0.20498119,1812.9,1812.8,8.29715749]
[1743791039540,0.1,1812.9,1812.8,8.29715749]
[1743791039739,0.20498119,1812.9,1812.8,8.29715749]
[1743791039952,0.1,1812.9,1812.8,8.29715749]
[1743791040147,0.21478297,1812.9,1812.8,8.29715749]
[1743791040352,0.1,1812.9,1812.8,8.24200577]
[1743791041051,0.21478297,1812.9,1812.8,8.24200577]
[1743791041571,0.21478297,1812.9,1812.8,5.51632]
[1743791041771,0.21478297,1812.9,1812.8,6.29932]
[1743791043078,0.21478297,1812.9,1812.8,6.35447127]
[1743791043250,0.21478297,1812.9,1812.8,6.82778215]
[1743791043574,11.74790228,1813.7,1812.8,6.82778215]
[1743791043575,0.8243,1813.7,1813.4,5.51431]
[1743791043954,0.8243,1813.7,1813.4,5.56942864]
[1743791044271,0.865,1813.9,1813.5,5.56906858]
[1743791044470,5.51352,1813.8,1813.4,5.51443]
[1743791045172,6.37798,1813.9,1813.5,5.51417]
[1743791045378,0.865,1813.9,1813.7,5.51356]
[1743791045545,0.865,1813.9,1813.7,6.616283]
[1743791045888,0.865,1813.9,1813.6,5.51367]
[1743791046182,0.865,1813.9,1813.7,5.56840924]
[1743791046471,0.865,1813.9,1813.6,11.02765]
[1743791046671,0.865,1813.9,1813.6,5.51379]
[1743791046863,0.865,1813.9,1813.7,5.51355]
[1743791047065,0.865,1813.9,1813.6,5.51379]
[1743791047267,0.865,1813.9,1813.7,5.51351]
[1743791047477,6.37821,1813.9,1813.5,6.31944]
[1743791047782,5.51331,1813.8,1813.5,5.51404]
[1743791048084,5.51331,1813.8,1813.4,11.02883]
[1743791048250,0.865,1813.9,1813.6,5.51362]
[1743791048774,0.865,1813.9,1813.6,5.51389]
[1743791048979,6.37808,1813.9,1813.5,11.02821]
[1743791049149,6.37808,1813.9,1813.5,12.131031]
[1743791049351,6.37808,1813.9,1813.5,6.616861]
[1743791049553,5.51338,1813.8,1813.5,6.616931]
[1743791049955,5.51338,1813.8,1813.5,1.102821]
[1743791050153,5.51338,1813.8,1813.5,6.617011]
[1743791051179,5.51338,1813.8,1813.5,1.102821]
[1743791051350,5.51328,1813.8,1813.4,5.51428]
[1743791051551,5.5136,1813.7,1813.3,6.3396]
[1743791051749,5.5136,1813.7,1813.3,5.5147]
[1743791051982,5.5136,1813.7,1813.3,11.02933]
[1743791052347,5.5136,1813.7,1813.3,11.02929]
[1743791052554,0.8325,1813.6,1812.8,30.875]
[1743791052754,6.34639,1813.6,1812.9,6.26666]
[1743791052954,6.34639,1813.6,1813.2,5.51486]
[1743791053193,6.34639,1813.6,1813.3,5.51479]
[1743791053386,6.34639,1813.6,1813.2,5.51486]
[1743791053754,0.10482347,1813.5,1813.2,5.51486]
[1743791053955,0.10482347,1813.5,1813.2,11.02986]
[1743791054177,0.10482347,1813.5,1813.3,5.51479]
[1743791054405,0.10482347,1813.5,1813.3,5.51464]
[1743791054582,0.10482347,1813.5,1813.1,5.5153]
[1743791054787,5.51466,1813.4,1813.1,0.6323]
[1743791055094,0.10699376,1813.3,1813.1,6.14755]
[1743791055249,0.10699376,1813.3,1813.0,0.8077]
[1743791055250,5.51501,1813.3,1813.0,0.8077]
[1743791055455,0.10699376,1813.2,1813.0,5.51562]
[1743791055676,5.51467,1813.4,1813.1,5.51541]
[1743791055882,5.62122103,1813.3,1813.0,5.51562]
[1743791056084,5.62122103,1813.3,1812.9,11.03186]
[1743791056279,0.10639103,1813.3,1813.1,5.51539]
[1743791056454,5.51463,1813.4,1813.1,5.51539]
[1743791056657,0.10606954,1813.3,1813.1,5.51539]
[1743791056858,5.51483,1813.3,1813.0,5.51566]
[1743791057190,0.10606954,1813.2,1813.0,5.51566]
[1743791057385,6.43189954,1813.2,1812.9,6.695986]
[1743791057592,6.43189954,1813.2,1812.9,1.179986]
[1743791057792,0.91666954,1813.2,1812.9,6.695726]
[1743791057993,0.10606954,1813.2,1813.0,6.24023423]
[1743791058194,0.10606954,1813.2,1813.0,11.75583423]
[1743791058405,6.33072,1813.4,1813.0,11.7006826]
[1743791058711,6.33072,1813.4,1813.1,5.51516]
[1743791058712,0.8162,1813.4,1813.1,5.51516]
[1743791058868,0.10606954,1813.3,1813.1,11.03039]
[1743791059068,5.51421,1813.5,1813.1,12.20042626]
[1743791059303,0.10606954,1813.4,1813.1,6.68515626]
[1743791059866,5.51491,1813.3,1813.1,1.16999626]
[1743791060071,11.02991,1813.3,1813.0,0.6695726]
[1743791060293,0.10606954,1813.2,1813.0,0.6695726]
[1743791060682,0.89656954,1813.2,1812.9,5.5159]
[1743791060888,6.41168954,1813.2,1812.8,6.28427]
[1743791061066,6.30692,1812.8,1812.4,5.51745]
[1743791061278,0.7905,1812.8,1812.6,5.51692]
[1743791061497,0.10606954,1812.7,1812.6,5.51692]
[1743791062323,0.10606954,1812.7,1812.6,6.620334]
[1743791062672,12.14896,1813.0,1812.6,6.620334]
[1743791062872,0.10606954,1812.9,1812.8,5.5162]
[1743791063072,0.8152,1813.3,1812.8,5.5162]
[1743791063296,5.62118954,1813.2,1812.9,6.12269223]
[1743791063502,5.62118954,1813.2,1812.9,0.55162]
[1743791063695,11.13651954,1813.2,1812.8,5.51628]
[1743791064005,5.51584,1813.0,1812.6,7.448114]
[1743791064204,0.7738,1812.9,1812.6,6.620314]
[1743791064505,0.10606954,1812.8,1812.7,5.57159989]
[1743791064693,5.51573,1813.0,1812.7,5.51644]
[1743791064890,5.51573,1813.0,1812.3,6.77138677]
[1743791064891,5.5168,1812.7,1812.3,5.51768]
[1743791065096,11.03366,1812.7,1812.3,5.51768]
[1743791065296,0.10606954,1812.6,1812.4,0.551768]
[1743791065495,11.03365,1812.7,1812.4,0.551768]
[1743791065674,5.62304954,1812.6,1812.4,0.551768]
[1743791065877,11.14015954,1812.6,1812.4,0.551768]
[1743791066075,6.39014954,1812.6,1812.1,5.51844]
[1743791066306,11.03496,1812.5,1812.1,5.51844]
[1743791066505,5.62150945,1812.4,1812.1,5.51844]
[1743791066678,0.10393945,1812.4,1812.2,5.51805]
[1743791066880,11.80126,1812.6,1812.2,5.51805]
[1743791067079,5.62118945,1812.5,1812.2,1.103646]
[1743791067406,0.10393945,1812.5,1812.2,6.621786]
[1743791067603,5.51768,1812.4,1812.2,1.103646]
[1743791067809,5.51768,1812.4,1812.1,5.51845]
[1743791068185,0.10393945,1812.3,1812.0,6.28364]
[1743791068382,0.10393945,1812.3,1812.1,5.51836]
[1743791068604,5.51771,1812.4,1812.1,5.51836]
[1743791068982,5.51771,1812.4,1812.0,11.80235]
[1743791068983,0.10393945,1812.3,1812.0,11.80235]
[1743791069183,5.62182945,1812.3,1812.1,1.180235]
[1743791069428,5.51771,1812.4,1812.0,5.51863]
[1743791069579,5.51771,1812.4,1812.0,11.03723]
[1743791069580,0.10393945,1812.2,1812.0,11.03723]
[1743791069779,6.28409,1812.6,1812.2,5.51803]
[1743791070011,0.7671,1812.6,1812.3,5.5177]
[1743791070183,6.28404,1812.6,1812.3,5.5177]
[1743791070378,6.28404,1812.6,1812.3,6.621281]
[1743791070577,5.51744,1812.5,1812.3,1.103581]
[1743791070779,0.7671,1812.6,1811.9,6.34064]
[1743791070979,0.8286,1812.2,1811.9,11.03788]
[1743791071307,0.8286,1812.2,1811.8,5.51934]
[1743791071308,6.34688,1812.2,1811.8,5.51934]
[1743791071513,6.34679,1812.2,1811.8,5.51921]
[1743791071712,5.51846,1812.1,1811.8,6.151821]
[1743791072012,0.8286,1812.2,1811.8,0.68779747]
[1743791072176,0.8286,1812.2,1811.8,0.05518647]
[1743791072377,6.27131,1811.9,1811.6,5.51993]
[1743791072598,0.7521,1811.9,1811.6,5.51993]
[1743791072801,0.7521,1811.9,1811.7,5.51948]
[1743791073002,0.7521,1811.9,1811.7,11.03902]
[1743791073205,0.7964,1812.1,1811.8,5.51937]
[1743791073411,0.7964,1812.1,1811.8,11.09376874]
[1743791073709,11.83367,1812.1,1811.7,6.62907132]
[1743791073913,0.7964,1812.1,1811.8,5.57430832]
[1743791074104,0.7964,1812.1,1811.8,5.51912]
[1743791074427,5.51936,1811.9,1811.3,0.7825]
[1743791074583,5.51936,1811.9,1811.6,5.51997]
[1743791074785,6.3423,1812.0,1811.6,5.5198]
[1743791075185,5.51912,1811.9,1811.6,5.5198]
[1743791075816,5.51912,1811.9,1811.6,5.51997]
[1743791076205,5.51912,1811.9,1811.6,6.623992]
[1743791076402,5.51912,1811.9,1811.6,1.104022]
[1743791076785,5.51912,1811.9,1811.6,6.623862]
[1743791076985,5.51951,1811.8,1811.4,5.52055]
[1743791077185,5.51951,1811.8,1811.4,11.04097]
[1743791077585,11.03915,1811.8,1811.4,5.52042]
[1743791077780,5.51951,1811.8,1811.4,5.52042]
[1743791078017,5.51975,1811.7,1811.4,5.52042]
[1743791078529,5.51975,1811.7,1811.1,0.8624]
[1743791078530,0.8079,1811.7,1811.1,0.8624]
[1743791078720,0.8079,1811.7,1811.1,0.1]
[1743791078721,0.8079,1811.3,1811.1,0.1]
[1743791079038,6.32903,1811.3,1811.1,0.1]
[1743791079187,5.52073,1811.4,1811.1,0.1]
[1743791079517,6.32819,1811.5,1811.1,5.62149]
[1743791079685,6.32819,1811.5,1811.2,5.52118]
[1743791079883,0.8079,1811.5,1811.2,5.52118]
[1743791080081,5.5199,1811.7,1811.3,5.52073]
[1743791080289,0.7813,1811.7,1811.4,5.5204]
[1743791080588,5.51948,1811.8,1811.4,5.5204]
[1743791080839,14.81965,1811.9,1811.5,5.52017]
[1743791081186,0.7813,1811.9,1811.5,1.104057]
[1743791081488,12.1188,1812.1,1811.7,5.51951]
[1743791081699,5.51897,1812.0,1811.6,5.51993]
[1743791081907,6.29976,1812.1,1811.8,5.51936]
[1743791082106,0.7813,1812.1,1811.8,5.51921]
[1743791082322,0.7813,1812.1,1811.8,5.51927]
[1743791082643,6.2999,1812.1,1811.7,5.51965]
[1743791082838,6.2999,1812.1,1811.8,6.071325]
[1743791082839,0.7813,1812.1,1811.8,6.071325]
[1743791083136,6.29988,1812.1,1811.8,0.551965]
[1743791083341,0.7813,1812.1,1811.6,5.51995]
[1743791083544,5.51889,1812.0,1811.6,5.51995]
[1743791084089,5.51907,1811.9,1811.6,5.51995]
[1743791084467,11.03786,1812.0,1811.6,5.51985]
[1743791084935,5.51889,1812.0,1811.6,11.03965]
[1743791085226,6.29976,1812.1,1811.7,5.51957]
[1743791085589,6.29976,1812.1,1811.7,11.03909]
[1743791085835,5.51881,1812.0,1811.6,6.7343207]
[1743791086116,6.27478,1811.7,1811.3,12.11414]
[1743791086315,6.27478,1811.7,1811.2,5.52116]
[1743791086316,5.5201,1811.6,1811.2,5.52116]
[1743791086515,5.52081,1811.4,1811.1,0.1]
[1743791086884,11.8644,1811.5,1811.1,5.62139]
[1743791087496,5.52089,1811.3,1811.1,0.1]
[1743791087696,5.5212,1811.2,1811.1,0.1]
[1743791087896,5.52089,1811.3,1811.1,0.1]
[1743791088116,11.042,1811.3,1811.1,0.1]
[1743791088317,6.3305,1811.2,1811.1,0.1]
[1743791091007,0.8093,1811.2,1811.1,0.1]
[1743791091214,17.65123,1811.4,1811.1,0.1]
[1743791091394,5.5209,1811.3,1811.1,0.1]
[1743791091921,17.65139,1811.4,1811.1,0.1]
[1743791092086,6.31253,1811.4,1811.1,0.1]
[1743791092519,5.52101,1811.3,1811.1,0.1]
[1743791092718,6.31253,1811.4,1811.1,0.1]
[1743791093021,0.8007,1811.6,1811.2,0.05521218]
[1743791093201,0.7833,1811.8,1811.2,0.81151218]
[1743791093401,5.51978,1811.7,1811.3,5.52069]
[1743791093724,5.52002,1811.6,1811.3,5.52069]
[1743791093920,5.51978,1811.7,1811.3,11.04143]
[1743791094126,5.51978,1811.7,1811.3,12.221203]
[1743791094324,0.7833,1811.8,1811.5,5.52026]
[1743791094529,5.51938,1811.8,1811.5,5.52026]
[1743791094895,11.03902,1811.8,1811.4,5.52053]
[1743791095115,5.5197,1811.7,1811.4,5.52053]
[1743791095311,11.0402,1811.6,1811.2,5.52117]
[1743791095521,5.52031,1811.5,1811.2,5.52117]
[1743791096646,5.52031,1811.5,1811.2,5.52113]
[1743791097156,5.52031,1811.5,1811.1,11.95286]
[1743791097350,13.1082813,1811.8,1811.1,0.1]
[1743791097648,11.04153,1811.4,1811.1,0.1]
[1743791097946,5.5212,1811.2,1811.1,0.1]
[1743791098146,5.52092,1811.3,1811.1,0.1]
[1743791098731,6.29044,1811.4,1811.1,0.1]
[1743791098932,5.521,1811.3,1811.1,0.1]
[1743791099476,5.5212,1811.2,1811.1,0.1]
[1743791099645,6.2764,1811.2,1811.1,0.1]
[1743791100963,15.0944,1811.2,1811.1,0.1]
[1743791101172,19.67694609,1811.2,1811.1,0.1]
[1743791102326,15.4980901,1811.2,1811.1,0.1]
[1743791102527,12.0944,1811.2,1811.1,0.1]
[1743791103153,6.32428,1811.4,1811.1,0.1]
[1743791103536,11.84508,1811.4,1811.1,0.662169]
[1743791103733,6.32428,1811.4,1811.1,0.1]
[1743791104139,6.32428,1811.4,1811.1,5.62145]
[1743791104339,5.52107,1811.3,1811.1,0.1]
[1743791104541,11.04223,1811.3,1811.1,0.1]
[1743791104861,5.5212,1811.2,1811.1,0.1]
[1743791105250,5.52107,1811.3,1811.1,0.1]
[1743791105627,6.32424,1811.4,1811.1,0.1]
[1743791105832,5.5212,1811.2,1811.1,0.1]
[1743791106033,11.04235,1811.3,1811.1,0.1]
[1743791106235,5.52116,1811.3,1811.1,0.1]
[1743791106868,11.04231,1811.3,1811.1,0.1]
[1743791107069,6.3242,1811.4,1811.1,0.1]
[1743791107251,5.5203,1811.5,1811.2,5.52119]
[1743791107432,11.81257,1811.6,1811.2,5.52119]
[1743791107634,6.29241,1811.6,1811.3,5.52088]
[1743791107835,5.52039,1811.5,1811.1,6.964887]
[1743791108136,5.52039,1811.5,1811.2,6.2176687]
[1743791108963,11.04085,1811.5,1811.2,0.6964887]
[1743791109263,6.29248,1811.6,1811.1,0.1]
[1743791109473,5.52048,1811.5,1811.1,5.62136]
[1743791109657,11.04104,1811.5,1811.1,11.14274]
[1743791109853,5.5206,1811.4,1811.1,0.1]
[1743791110066,6.3191,1811.2,1811.1,0.1]
[1743791110375,15.1536,1811.2,1811.1,0.1]
[1743791112564,15.55987708,1811.2,1811.1,1e-05]
[1743791112868,5.52312,1810.6,1810.3,5.52394]
[1743791113397,3.0,1811.1,1810.4,0.05523454]
[1743791113398,0.7757,1810.9,1810.4,0.05523454]
[1743791113544,6.29781,1810.9,1810.6,5.5229]
[1743791113739,6.29781,1810.9,1810.5,5.5233]
[1743791113740,5.52243,1810.8,1810.5,5.5233]
[1743791114068,6.29781,1810.9,1810.5,5.52322]
[1743791114275,5.52181,1811.0,1810.6,5.52289]
[1743791114575,5.52244,1810.8,1810.5,6.29311]
[1743791114890,5.52212,1810.9,1810.5,11.81635]
[1743791115046,5.52212,1810.9,1810.5,6.29304]
[1743791115241,5.52212,1810.9,1810.5,11.81624]
[1743791115441,5.52212,1810.9,1810.5,11.8162]
[1743791115975,5.52212,1810.9,1810.6,5.52297]
[1743791116175,11.04442,1810.9,1810.5,6.293]
[1743791116473,5.52244,1810.8,1810.5,6.293]
[1743791116672,5.52212,1810.9,1810.5,11.81622]
[1743791116876,11.04441,1810.9,1810.5,6.293]
[1743791117062,5.52282,1810.7,1810.3,5.52384]
[1743791117368,5.52295,1810.7,1810.2,6.35084]
[1743791117575,5.52295,1810.7,1810.3,5.52384]
[1743791117775,11.04662,1810.6,1810.2,6.35084]
[1743791117974,5.52331,1810.6,1810.3,5.52391]
[1743791118276,0.8242,1810.5,1810.2,5.52421]
[1743791118475,5.52272,1810.7,1810.4,5.52348]
[1743791118676,3.0,1810.8,1810.6,5.52301]
[1743791118868,11.33886,1811.0,1810.6,11.85758]
[1743791119065,6.35034,1811.1,1810.9,5.52194]
[1743791119066,0.8288,1811.1,1810.9,5.52194]
[1743791119268,0.7956,1811.4,1810.9,0.7689]
[1743791119578,9.69835599,1811.8,1811.1,5.5214]
[1743791119579,6.31559,1811.6,1811.1,5.5214]
[1743791119956,5.52043,1811.5,1811.1,5.5214]
[1743791120167,5.52083,1811.4,1811.1,5.5214]
[1743791120555,5.52083,1811.4,1811.0,5.52151]
[1743791120862,5.52131,1811.2,1810.9,0.7689]
[1743791121062,5.52091,1811.3,1810.9,6.29091]
[1743791121492,5.52039,1811.5,1811.1,5.52136]
[1743791121691,11.04087,1811.5,1811.1,5.52136]
[1743791122064,5.52028,1811.5,1810.9,6.29101]
[1743791122250,5.52116,1811.3,1810.9,11.81297]
[1743791122651,5.52116,1811.3,1811.0,5.52179]
[1743791122886,5.52116,1811.3,1810.9,6.29086]
[1743791123092,5.52213,1810.9,1810.6,6.3124]
[1743791123291,11.04449,1810.9,1810.6,0.7894]
[1743791123450,5.52246,1810.8,1810.5,5.52317]
[1743791123872,11.04508,1810.8,1810.4,6.31298]
[1743791124196,5.52417,1810.3,1810.1,0.1]
[1743791124398,5.52425,1810.2,1810.1,0.1]
[1743791125797,11.34016,1810.3,1810.1,0.1]
[1743791126007,5.52425,1810.2,1810.1,0.1]
[1743791127058,5.52511,1810.0,1809.2,5.52703]
[1743791127284,6.35777,1809.8,1809.4,5.52658]
[1743791127494,5.52578,1809.7,1809.3,5.52682]
[1743791128109,5.52578,1809.7,1809.3,11.05361]
[1743791128273,6.35776,1809.8,1809.4,5.52661]
[1743791128653,11.88353,1809.8,1809.4,5.52661]
[1743791128998,11.3412,1809.9,1809.5,5.52636]
[1743791129299,11.3412,1809.9,1809.5,5.52623]
[1743791129494,5.5252,1809.9,1809.5,5.52623]
[1743791129803,11.8107,1810.2,1809.8,5.52547]
[1743791130412,11.8107,1810.2,1809.4,0.7913]
[1743791130413,5.52551,1809.8,1809.4,5.52652]
[1743791130583,5.52579,1809.7,1809.3,5.52699]
[1743791130770,5.5261,1809.6,1809.2,11.672133]
[1743791131288,5.5261,1809.6,1809.2,6.144843]
[1743791131485,5.5261,1809.6,1809.1,6.40908]
[1743791131686,5.52659,1809.5,1809.1,6.40908]
[1743791131992,5.52701,1809.3,1809.1,0.8815]
[1743791132211,11.05422,1809.3,1809.1,0.8815]
[1743791132513,6.3306,1809.2,1809.1,0.1]
[1743791132656,9.3306,1809.2,1809.1,0.1]
[1743791132859,9.74703876,1809.2,1809.1,0.1]
[1743791134088,8.5273,1809.2,1809.1,0.1]
[1743791134293,5.5273,1809.2,1809.1,0.1]
[1743791134868,5.5273,1809.2,1808.4,5.52971]
[1743791134869,0.7628,1809.0,1807.9,6.06]
[1743791135099,5.52875,1808.8,1808.3,5.52984]
[1743791135262,5.52883,1808.7,1808.3,11.0597]
[1743791135461,11.05747,1808.8,1808.4,5.52968]
[1743791135657,5.52885,1808.7,1808.4,5.52968]
[1743791135862,5.52872,1808.8,1808.4,11.05932]
[1743791136089,5.52872,1808.8,1808.4,5.52958]
[1743791136262,5.52896,1808.7,1808.3,5.52982]
[1743791136463,5.52896,1808.7,1808.2,0.7919]
[1743791136464,5.52872,1808.8,1808.4,11.05936]
[1743791136664,5.52872,1808.8,1808.4,5.52962]
[1743791136865,11.34623,1808.9,1808.6,5.52908]
[1743791137113,0.8258,1809.3,1808.5,0.8093]
[1743791137425,4.17885599,1809.6,1809.2,11.05423]
[1743791137426,5.94677243,1809.6,1809.2,11.05423]
[1743791137630,5.52619,1809.6,1809.3,5.52694]
[1743791137926,11.05246,1809.6,1809.2,5.52708]
[1743791138085,11.05245,1809.6,1809.1,5.52743]
[1743791138281,11.05243,1809.6,1809.2,5.52717]
[1743791138610,5.5261,1809.6,1809.2,5.52717]
[1743791138811,11.60504,1809.6,1809.2,5.52717]
[1743791138981,6.07871,1809.6,1809.2,11.0543]
[1743791139182,6.07871,1809.6,1809.2,11.05432]
[1743791139378,6.07871,1809.6,1809.3,5.52693]
[1743791139379,0.55261,1809.6,1809.3,5.52693]
[1743791139731,20.69779,1809.8,1809.4,5.52655]
[1743791139932,5.52618,1809.6,1809.3,5.52689]
[1743791140313,5.52724,1809.3,1808.9,5.52811]
[1743791140483,5.52792,1809.0,1808.6,6.31363]
[1743791140685,5.52761,1809.1,1808.7,5.52864]
[1743791140884,5.52761,1809.1,1808.7,11.05746]
[1743791141189,5.52744,1809.2,1808.8,5.52831]
[1743791141390,0.7781,1809.4,1808.6,0.7846]
[1743791141699,5.52702,1809.3,1809.0,5.52773]
[1743791142556,5.52702,1809.3,1808.9,5.52816]
[1743791142717,6.080132,1809.2,1808.8,5.52837]
[1743791142915,5.52779,1809.1,1808.6,0.7846]
[1743791143110,11.899052,1809.2,1808.8,5.5284]
[1743791143297,11.899052,1809.2,1808.7,5.52883]
[1743791143298,5.52776,1809.1,1808.7,5.52873]
[1743791143625,0.7781,1809.4,1808.6,6.31372]
[1743791143796,12.1238,1809.4,1809.0,5.5278]
[1743791144128,0.7998,1809.7,1809.0,0.8095]
[1743791144328,5.5262,1809.6,1809.2,5.52708]
[1743791144534,5.52655,1809.5,1809.1,5.52737]
[1743791144735,5.52655,1809.5,1809.2,5.52729]
[1743791144936,14.85157,1809.7,1809.3,5.52689]
[1743791145113,5.52617,1809.6,1809.3,5.52689]
[1743791145316,5.52685,1809.4,1809.1,5.52759]
[1743791145631,11.05378,1809.4,1809.0,6.33735]
[1743791145807,5.52685,1809.4,1809.0,6.33728]
[1743791146008,6.27929,1809.3,1808.7,0.8204]
[1743791146213,6.27928,1809.3,1809.0,5.52775]
[1743791146419,0.7521,1809.3,1809.0,5.52775]
[1743791146608,11.898405,1809.4,1809.0,11.05549]
[1743791146804,11.898405,1809.4,1809.1,5.5276]
[1743791147010,16.87259,1809.4,1809.0,5.52774]
[1743791147312,5.819,1809.4,1808.8,5.52849]
[1743791147528,5.52759,1809.2,1808.8,5.52839]
[1743791147835,0.8159,1809.1,1808.8,5.52836]
[1743791148037,5.52703,1809.3,1809.0,5.52791]
[1743791148811,17.64443,1809.4,1809.0,5.5278]